Cogmind - Beta 13 @@@ ROGUE MODE // 2024.04.08 @ 13:42:25 Player: Hachimocho Result: Destroyed by D-53 Grenadier with Mini Grenade Launcher Performance ------------- Evolutions (0) 0 Regions Visited (2) 400 Robots Destroyed (10) 50 Value Destroyed (248) 248 Prototype IDs (0) 0 Alien Tech Used (0) 0 Bonus (0) 0 TOTAL SCORE: 698 Bonus ------- None Cogmind --------- Core Integrity 0/250 Matter 160/300 Energy 95/100 System Corruption 0% Temperature Cool (0) Movement Core (150) Ox2 Location -10/Mines Parts ------- > --- POWER (1) -------- (None) > --- PROPULSION (2) --- (None) > --- UTILITY (2) ------ Small Storage Unit > --- WEAPON (2) ------- Medium Laser > --- INVENTORY (8) ---- Aluminum Leg Aluminum Leg Heat Sink ECM Suite Hacking Suite Light Cannon Datajack Mining Claw Peak State ------------ > --- POWER ------------ Light Ion Engine > --- PROPULSION ------- Aluminum Leg Aluminum Leg > --- UTILITY ---------- Small Storage Unit ECM Suite > --- WEAPON ----------- Light Cannon Light Cannon > --- INVENTORY -------- Aluminum Leg Aluminum Leg Heat Sink Sensor Array Hacking Suite Medium Laser Datajack Mining Claw [Rating: 8] Favorites ----------- Power Light Ion Engine Engine Light Ion Engine Propulsion Aluminum Leg Leg Aluminum Leg Utility Small Storage Unit Device ECM Suite Storage Small Storage Unit Weapon Light Cannon Energy Gun Medium Laser Ballistic Cannon Light Cannon Slashing Weapon Mining Claw Build | -11 -10 -10 ------- Run | Yrd Mat Min Slots Evolved . | . . . Power . | . . . Propulsion . | . . . Utility . | . . . Weapon . | . . . Parts Attached 15 | 6 5 4 Power 2 | 1 1 . Engine 2 | 1 1 . Core . | . . . Reactor . | . . . Propulsion 4 | 2 . 2 Treads . | . . . Leg 4 | 2 . 2 Wheel . | . . . Hover . | . . . Flight . | . . . Utility 3 | 1 1 1 Device 2 | . 1 1 Storage 1 | 1 . . Processor . | . . . Hackware . | . . . Protection . | . . . Artifact . | . . . Weapon 6 | 2 3 1 Energy Gun 3 | 2 . 1 Energy Cannon . | . . . Ballistic Gun . | . . . Ballistic Cannon 2 | . 2 . Launcher . | . . . Special Weapon . | . . . Impact Weapon . | . . . Slashing Weapon 1 | . 1 . Piercing Weapon . | . . . Special Melee Weapon . | . . . Unidentified Prototypes . | . . . Parts Lost 5 | . 1 4 Power 2 | . 1 1 Propulsion 2 | . . 2 Utility . | . . . Weapon 1 | . . 1 Highest Loss Streak 4 | . 1 4 To Critical Strikes . | . . . Average Slot Usage (%) 97 | . 99 94 Engine 13 | . 13 13 Leg 27 | . 28 25 Device 13 | . 13 13 Storage 14 | . 14 14 Energy Gun 9 | . 9 9 Ballistic Cannon 16 | . 15 16 Slashing Weapon 2 | . 2 . Naked Turns . | . . . Heaviest Build 16 | 12 16 16 Greatest Support 20 | 20 20 20 Greatest Overweight (x) 1 | . . 1 Average Overweight (x) . | . . . Largest Inventory Capacity 8 | 8 8 8 Average Capacity 7 | 6 8 8 Most Carried 8 | 5 8 8 Average Carried 6 | 2 6 8 Final Capacity 8 | 8 8 8 Final Carried 8 | 2 8 8 Class Distribution -------------------- 100% | Mutant Dominant Class ---------------- Mutant | -10/Materials Mutant | -10/Mines Resources | -11 -10 -10 ----------- Run | Yrd Mat Min Matter Collected 369 | 148 147 74 Remotely . | . . . Salvage Created 292 | . 231 61 Parts 25 | . 25 . Haulers Intercepted 2 | . 2 . Recyclers Shooed . | . . . Parts Field Recycled . | . . . Retrieved Matter . | . . . Parts Self-Destructed . | . . . Prevented . | . . . Kills | -11 -10 -10 ------- Run | Yrd Mat Min Combat Hostiles Destroyed 5 | . 3 2 Melee 1 | . 1 . Cannons 4 | . 2 2 Classes Destroyed 4 | . 4 . Hauler 2 | . 2 . Operator 2 | . 2 . Watcher 1 | . 1 . Grunt 5 | . 3 2 Best Kill Streak 4 | . 4 2 Combat Bots Only 2 | . 2 2 Max Kills in Single Turn 2 | . 2 1 Gunslinging . | . . . Exploded . | . . . Melee 1 | . 1 . Uniques/NPCs Destroyed . | . . . Combat | -11 -10 -10 -------- Run | Yrd Mat Min Hostile Shots Fired 62 | . 22 40 Missed 8 | . 4 4 Damage Taken 992 | . 217 775 Core 261 | . 42 219 Absorbed by Shields . | . . . Core Remaining (%) 100 | 100 . . Volleys Fired 25 | . 13 12 Largest 2 | . 2 2 Hottest 85 | . 70 85 Shots Fired 49 | . 26 23 Gun 3 | . . 3 Cannon 46 | . 26 20 Launcher . | . . . Special . | . . . Kinetic 46 | . 26 20 Thermal 3 | . . 3 Explosive . | . . . Electromagnetic . | . . . Robot Hit Streak 10 | . 10 4 Robot Miss Streak 3 | . 3 3 Penetration Max . | . . . Secondary Targets . | . . . Shots Hit Robots 32 | . 19 13 Core Hits 13 | . 9 4 Critical Kills . | . . . Critical Parts Destroyed . | . . . Critical Strikes 1 | . . 1 Blast 1 | . . 1 Melee Attacks 14 | . 14 . Impact . | . . . Slashing 14 | . 14 . Piercing . | . . . Sneak Attacks 1 | . 1 . Combat Hostiles . | . . . Follow-up Attacks . | . . . Damage Inflicted 596 | . 377 219 Guns 25 | . . 25 Cannons 450 | . 256 194 Explosions . | . . . Melee 121 | . 121 . Ramming . | . . . Kinetic 450 | . 256 194 Thermal 25 | . . 25 Explosive . | . . . Electromagnetic . | . . . Impact . | . . . Slashing 121 | . 121 . Piercing . | . . . Highest Corruption . | . . . Average Corruption . | . . . Corruption Purged . | . . . Corruption Blocked . | . . . Overload Shots . | . . . Overflow Damage 6 | . 6 . Projectiles . | . . . Explosions . | . . . Melee 6 | . 6 . Knockbacks 4 | . 1 3 Impact . | . . . Kinetic 4 | . 1 3 Secondary . | . . . Self-Inflicted Damage . | . . . Shots . | . . . Rammed . | . . . Targets Rammed . | . . . Kicked . | . . . Crushed . | . . . Highest Temperature 177 | . 98 177 Average Temperature 57 | . 32 79 Received Heat Transfer 342 | . 138 204 Siege Activations . | . . . Robots Corrupted . | . . . Combat Hostiles . | . . . Parts Fried . | . . . Impact Corruptions . | . . . Robots Melted . | . . . Combat Hostiles . | . . . Parts Melted . | . . . Heat Transferred 74 | . . 74 Parts Sabotaged . | . . . Parts Stolen . | . . . Parts Stripped . | . . . Power Chain Reactions . | . . . Alert | -11 -10 -10 ------- Run | Yrd Mat Min Peak Influence 84 | . 84 82 Initial 32 | . . 32 Average 34 | . 26 70 Maximum Alert Level . | . . . Low Security (%) 100 | 100 100 100 Level 1 . | . . . Level 2 . | . . . Level 3 . | . . . Level 4 . | . . . Level 5 . | . . . High Security . | . . . Max Security . | . . . Squads Dispatched 1 | . 1 . Investigation . | . . . Extermination . | . . . Reinforcement 1 | . 1 . Assault . | . . . Garrison . | . . . Intercept . | . . . Searches Triggered . | . . . Construction Impeded . | . . . Haulers Reinforced . | . . . Active Scanning Responses . | . . . Cargo Convoy Interrupts . | . . . Stealth | -11 -10 -10 --------- Run | Yrd Mat Min Distress Signals 1 | . 1 . Communications Jammed . | . . . Distress Signals . | . . . Times Spotted 18 | . 5 13 Peak Tracking Total 6 | . 3 6 Tactical Retreats . | . . . Traps | -11 -10 -10 ------- Run | Yrd Mat Min Traps Triggered . | . . . Indirectly . | . . . Trap Hack Attempts . | . . . Triggered . | . . . Disarmed 6 | . 6 . Reprogrammed . | . . . Reused . | . . . Traps Extracted . | . . . Installed . | . . . Triggered . | . . . Machines | -11 -10 -10 ---------- Run | Yrd Mat Min Machines Disabled 1 | . 1 . Max in Single Turn 1 | . 1 . Machines Repaired . | . . . Machines Dismantled . | . . . Machines Sabotaged . | . . . Overloaded Fab Kills . | . . . Hacking | -11 -10 -10 --------- Run | Yrd Mat Min Machines Accessed 3 | . 3 . Terminals 3 | . 3 . Fabricators . | . . . Repair Stations . | . . . Recycling Units . | . . . Scanalyzers . | . . . Garrison Access . | . . . Total Hacks 5 | . 5 . Successful 2 | . 2 . Failed 3 | . 3 . Catastrophic . | . . . Database Lockouts . | . . . Manual . | . . . Terminals 5 | . 5 . Fabricators . | . . . Repair Stations . | . . . Recycling Units . | . . . Scanalyzers . | . . . Garrison Access . | . . . Terminal Hacks 2 | . 2 . Disarm Traps 1 | . 1 . Investigation Status 1 | . 1 . Fabricator Hacks . | . . . Repair Station Hacks . | . . . Recycling Unit Hacks . | . . . Scanalyzer . | . . . Garrison Access Hacks . | . . . Unauthorized Hacks . | . . . Terminals . | . . . Fabricators . | . . . Repair Stations . | . . . Recycling Units . | . . . Scanalyzers . | . . . Garrison Access . | . . . Data Cores Recovered 1 | . 1 . Used . | . . . Hacking Detections 2 | . 2 . Full Trace Events . | . . . Feedback Events . | . . . Feedback Blocked . | . . . Robot Schematics Acquired . | . . . Robots Built . | . . . Authchips . | . . . Time . | . . . Total Robot Build Rating . | . . . Part Schematics Acquired . | . . . Parts Built . | . . . Authchips . | . . . Time . | . . . Total Part Build Rating . | . . . Parts Repaired . | . . . Time . | . . . Parts Recycled . | . . . Recycled Matter . | . . . Retrieved Matter . | . . . Retrieved Components . | . . . Parts Scanalyzed . | . . . Part Schematics Acquired . | . . . Parts Damaged . | . . . Bothacking | -11 -10 -10 ------------ Run | Yrd Mat Min Used RIF Installer . | . . . Robots Hacked . | . . . Non-combat . | . . . Combat . | . . . Robot Hacks Applied . | . . . Relay Couplers Released . | . . . Fabnet Peak Effective % . | . . . Robots Rewired . | . . . Allies Hacked . | . . . Hacks Repelled . | . . . Allies | -11 -10 -10 -------- Run | Yrd Mat Min Total Allies . | . . . Largest Group . | . . . Highest-Rated Group . | . . . Highest-Rated Ally . | . . . Total Orders . | . . . Ally Attacks . | . . . Total Damage . | . . . Kills . | . . . Allies Corrupted . | . . . Allies Melted . | . . . Intel | -11 -10 -10 ------- Run | Yrd Mat Min Robot Analysis Total . | . . . Derelict Logs Recovered 1 | . . 1 Drone Launches . | . . . Drone Recoveries . | . . . Exploration | -11 -10 -10 ------------- Run | Yrd Mat Min Turns Passed 750 | 58 523 169 Spaces Moved 405 | 47 257 101 Core 17 | 17 . . Treads . | . . . Legs 388 | 30 257 101 Wheels . | . . . Hover . | . . . Flight . | . . . Fastest Speed 50 | 50 120 120 Average Speed 117 | 94 120 121 Slowest Speed 190 | 120 120 190 Overloaded Moves . | . . . Propulsion Burnouts . | . . . Robots Hopped . | . . . Cave-ins Triggered . | . . . Exploration Rate (%) 17 | 3 30 19 Regions Visited 2 Branch Regions 1 Pre-discovered Areas . | . . . Known Exits Taken . | . . . Unknown Exits Taken 2 | 1 1 . Scrap Searched . | . . . Spaces Dug 3 | . 3 . Terrain Destroyed 3 | . 3 . Melee 3 | . 3 . Projectile . | . . . AOE . | . . . Terrain Rammed . | . . . Walls Destroyed . | . . . Machines Disabled . | . . . Actions | -11 -10 -10 --------- Run | Yrd Mat Min Total 602 | 60 419 123 Wait 121 | . 116 5 Move 403 | 46 256 101 Hop . | . . . Pick Up 19 | 8 11 . Fast Attach . | . . . Attach 8 | 6 2 . Detach . | . . . Swap 7 | . 3 4 Drop 5 | . 4 1 Fire 25 | . 13 12 Melee 14 | . 14 . Ram . | . . . Kick . | . . . Crush . | . . . Escape Stasis . | . . . Rewire . | . . . Trap . | . . . Miscellaneous . | . . . Route ------- -11/Scrapyard -10/Materials -10/Mines (discovered 2 exits: [*Mat] / Sub) History --------- Turn | Location | Event 6 | -11/Scrapyard | Discovered new exit (range 16) 59 | -11/Scrapyard | Entered Materials 304 | -10/Materials | Build established: Mutant 503 | -10/Materials | Discovered new exit (range 16) 582 | -10/Materials | Entered Mines 615 | -10/Mines | Core integrity fell below 50% 670 | -10/Mines | Identified exit to Subcaves 719 | -10/Mines | Assembled infested the area 738 | -10/Mines | Core integrity fell below 20% 741 | -10/Mines | Discovered new exit (range 11) 751 | -10/Mines | Destroyed by D-53 Grenadier with Mini Grenade Launcher Last Messages --------------- 00739_ The unstable cave ceiling collapses. 00739_ Aluminum Leg destroyed. 00739_ Lgt. Cannon destroyed. 00739_ K-01 Serf collects debris. 00741_ EXIT=FOUND 00742_ The unstable cave ceiling collapses. 00742_ K-01 Serf collects debris. 00743_ The unstable cave ceiling collapses. 00743_ Dropped Sensor Array. 00745_ as-85849 destroyed. 00745_ as-52402 destroyed. 00745_ as-94920 destroyed. 00745_ as-93670 destroyed. 00745_ as-54978 destroyed. 00747_ K-01 Serf destroyed. 00747_ as-57755 destroyed. 00747_ as-03491 destroyed. 00747_ as-38799 destroyed. 00749_ Aluminum Leg destroyed. 00749_ Lgt. Ion Engine destroyed. Map ----- +----------------------------------------------------+ | ???????????????????????????????????????????? | | ???????????????????????????????????????????? | | ???????????##########??????????????????????? | | ???? #??????????????????????? | | ???????????######## #??????????????????????? | | ??????????????????# #???#####??????????????? | | ??????????????????# #??## ##?????????????? | | ??????????????????# #?## #?????????????? | | ??????????????????# #?# ##????????????? | | ??????????????????# #?# #????????????? | | ??????????????????# #?## #????????????? | | ??????????????????# #??# ##???????????? | | ??????????????????# #?## #???????????? | | ??????????????????# #?# #???????????? | | ??????????????????# #?# ## ""????? | | ??????????????????# #?# ### #### ""????? | | ??????????????????# #?# #?####????? ""????? | | ??????????????????# #?# #?????????????????? | | ??????????????????# #?# #?????????????????? | | ??????????????????# ### #?????????????????? | | ??????????????????# #?????????????????? | | ??????????????????##### #?##??????????????? | | ????????????????????## ## ##???????##????? | | ???????????????????## #???+## #????? | | ???????????????????# #?? #????? | | ??????????????????## @ #?? < ?????? | | ??????????????????# # #????? | | ??????????????????# # ?????? | | ?????????????????# # r #????????????? | | ????????????????? ! ##???????????? | | ??????????????# # #???????????? | | ?????????????# # #???????????? | | ?????????????# ka #???????????? | | ????????????? d #???????????? | | ?????????????# * d #???????????? | | ?????????????# % = #???????????? | | ??????????????## "%"??????????? | | ???????????????# ####?????????? | | ???????????????# #????????????? | | ???????????????## #????????????? | | ????????????????########## ????????????? | | ?????????????????????????## ???????????? | | ???????????????????????????# ##???????????? | | ????????????????????????????# #????????????? | | ????????????????????????????? #????????????? | | ????????????????????????????? #????????????? | | ????????????????????????????? #????????????? | | ??????????????????????????????#????????????? | | ???????????????????????????????????????????? | | ???????????????????????????????????????????? | +----------------------------------------------------+ Best States ------------- Heat Dissipation 25 Energy Generation 10 Energy Capacity 125 Matter Stores 213 Matter Capacity 300 Sight Range 16 Robot Scan Range 14 Terrain Scan Density 10 ECM Strength 1 Evasion (%) 55 Item Schematics ----------------- None Robot Schematics ------------------ None Fabricated ------------ Nothing Alien Tech Used ----------------- None Achievements -------------- None Challenges ------------ None Game ------ Seed ArmoredMomentumSource Manual? 0 Play Time 00:09:07 Cumulative 7.7 hours Start 2024.04.08 @ 13:34:24 End 2024.04.08 @ 13:42:25 Sessions 1 Manual Loads 0 Difficulty Rogue Special Mode None Game No. 13 Rogue 13 Adventurer 0 Explorer 0 Win Type - Total 0 Types 0/0/0/0/0/0/0/0/0 Lore% 14 Gallery% 14 Achievement% 14 Wizard Run 0 Options --------- Layout 1 ASCII 0 Keyboard 0 Movement Arrows Keybinds 0 Fullscreen 1 Font 24/Smallcaps Map View 50x35 Zoom Use 0% Tactical HUD 1 Map Filters NONE Filters NONE Steam 1 RUN: 9e60cdae-4c7d-4a66-aa36-76b545f55514